fUST/lending_fUST_20250531
["ID","MTS","AMOUNT","RATE_DAILY","PERIOD"]
[363352252,1748689845193,-151.0,0.0002142,2]
[363352253,1748689845204,-5000.0,0.00021432,2]
[363352254,1748689845214,-189.53451635,0.00021453,26]
[363352255,1748689845224,-1000.0,0.0002154,2]
[363352256,1748689845234,-1008.86377791,0.0002154,2]
[363352257,1748689845243,-1000.0,0.0002154,2]
[363352258,1748689845253,-1000.0,0.0002154,2]
[363352259,1748689845263,-421.21542315,0.0002154,2]
[363352260,1748689845273,-1004.31260326,0.0002154,2]
[363352261,1748689845283,-1007.04766132,0.0002154,2]
[363352262,1748689845296,-1000.0,0.0002154,2]
[363352263,1748689845305,-1000.0,0.0002154,2]
[363352264,1748689845315,-1200.0,0.0002154,2]
[363352265,1748689845326,-1000.0,0.0002154,2]
[363352266,1748689845338,-1000.0,0.0002154,2]
[363352267,1748689845348,-152.21005988,0.00021561,2]
[363352268,1748689845358,-159.82013329,0.00021562,2]
[363352270,1748689845368,-3076.25699881,0.0002159,5]
[363352271,1748689845378,-430.0,0.00021643,2]
[363352272,1748689845387,-2751.94,0.00021643,2]
[363352273,1748689845398,-509.38,0.00021643,2]
[363352275,1748689845407,-784.21,0.00021643,2]
[363352276,1748689845417,-1443.64,0.00021643,2]
[363352278,1748689845427,-1054.13,0.00021643,2]
[363352280,1748689845436,-849.21,0.00021643,2]
[363352282,1748689845446,-1255.53,0.00021643,2]
[363352284,1748689845455,-2533.87,0.00021643,2]
[363352286,1748689845465,-491.89,0.00021643,2]
[363352287,1748689845476,-189.53451635,0.00021663,28]
[363352288,1748689845486,-151.0,0.000217,3]
[363352289,1748689845495,-8772.43,0.000217,2]
[363352290,1748689845506,-3693.1,0.000217,2]
[363352291,1748689845516,-17612.31,0.000217,15]
[363352292,1748689845525,-215.0738,0.00021705,2]
[363352293,1748689845536,-250.0,0.00021719,2]
[363352294,1748689845657,-159.82013329,0.00021781,2]
[363352295,1748689845667,-625.56291871,0.00021791,2]
[363352296,1748689845677,-1917.18,0.000218,2]
[363352297,1748689845688,-150.0,0.0002185,2]
[363352298,1748689845699,-150.0,0.0002185,2]
[363352299,1748689845709,-150.0,0.0002185,2]
[363352300,1748689845721,-150.0,0.0002185,2]
[363352301,1748689845731,-962.0,0.0002185,2]
[363352302,1748689845740,-2227.0,0.0002185,2]
[363352303,1748689845750,-708.0,0.0002185,2]
[363352304,1748689845761,-3076.25699881,0.00021866,6]
[363352305,1748689845770,-189.53451635,0.00021874,29]
[363352306,1748689845780,-364.3142842,0.0002189,2]
[363352307,1748689845790,-364.3142842,0.0002189,2]
[363352308,1748689845799,-364.3142842,0.0002189,2]
[363352309,1748689845809,-364.3142842,0.0002189,2]
[363352310,1748689845818,-364.3142842,0.0002189,2]
[363352312,1748689845828,-364.3142842,0.0002189,2]
[363352314,1748689845838,-364.3142842,0.0002189,2]
[363352315,1748689845847,-1014.7535592,0.00021917,2]
[363352316,1748689845858,-2500.0,0.00021917,2]
[363352317,1748689845875,-292.2741035,0.00021917,2]
[363352318,1748689845885,-235.14985348,0.00021917,2]
[363352319,1748689845894,-574.76,0.00021917,2]
[363352320,1748689845903,-2751.94,0.00021917,2]
[363352321,1748689845913,-509.38,0.00021917,2]
[363352322,1748689845922,-784.21,0.00021917,2]
[363352323,1748689845931,-1443.64,0.00021917,2]
[363352324,1748689845942,-1054.13,0.00021917,2]
[363352325,1748689845953,-849.21,0.00021917,2]
[363352326,1748689845963,-1255.53,0.00021917,2]
[363352327,1748689845972,-2533.87,0.00021917,2]
[363352328,1748689845982,-491.89,0.00021917,2]
[363352329,1748689845992,-5444.89,0.00021948,2]
[363352330,1748689846002,-5000.0,0.0002198,2]
[363352331,1748689846012,-600.0,0.00021984,2]
[363352332,1748689846021,-500.0,0.00022,8]
[363352333,1748689846031,-2316.108283,0.00022,7]
[363352334,1748689846040,-151.0,0.00022,7]
[363352335,1748689846050,-151.0,0.00022,7]
[363352336,1748689846060,-263.805469,0.00022,7]
[363352337,1748689846069,-263.805469,0.00022,7]
[363352338,1748689846080,-2000.0,0.00022,2]
[363352339,1748689846101,-2000.0,0.00022,2]
[363352340,1748689846110,-2000.0,0.00022,2]
[363352341,1748689846120,-2000.0,0.00022,2]
[363352342,1748689846129,-975.14,0.00022,7]
[363352343,1748689846139,-151.0,0.00022,7]
[363352344,1748689846149,-151.0,0.00022,7]
[363352345,1748689846159,-202.556422,0.00022,7]
[363352346,1748689846168,-202.556422,0.00022,7]
[363352347,1748689846178,-151.0,0.00022,7]
[363352348,1748689846189,-134682.37,0.00022,7]
[363352349,1748689846199,-159.82013329,0.00022,2]
[363352350,1748689846208,-1150.0,0.00022,5]
[363352351,1748689846217,-151.0,0.00022,7]
[363352352,1748689846227,-151.0,0.00022,7]
[363352353,1748689846236,-151.0,0.00022,7]
[363352354,1748689846246,-1029.782581,0.00022,7]
[363352355,1748689846256,-1029.782581,0.00022,7]
[363352356,1748689846266,-151.0,0.00022,7]
[363352357,1748689846275,-12664.98044988,0.00022,7]
[363352358,1748689846285,-151.0,0.00022,7]
[363352359,1748689846294,-250.0,0.00022,30]
[363352360,1748689846303,-151.0,0.00022,7]
[363352361,1748689846315,-842.5625,0.00022,7]
[363352362,1748689846324,-151.0,0.00022,7]
[363352363,1748689846334,-151.0,0.00022,7]
[363352364,1748689846343,-151.0,0.00022,7]
[363352365,1748689846353,-151.0,0.00022,7]
[363352366,1748689846363,-1723.783253,0.00022,7]
[363352367,1748689846372,-1723.783253,0.00022,7]
[363352368,1748689846382,-153.17958,0.00022,7]
[363352369,1748689846391,-151.0,0.00022,7]
[363352370,1748689846401,-151.0,0.00022,7]
[363352371,1748689846410,-151.0,0.00022,7]
[363352372,1748689846420,-151.0,0.00022,7]
[363352373,1748689846431,-151.0,0.00022,7]
[363352374,1748689846441,-246.575222,0.00022,2]
[363352375,1748689846451,-246.575222,0.00022,2]
[363352376,1748689846462,-212.77096907,0.00022,7]
[363352377,1748689846471,-2200.0,0.00022082,2]
[363352378,1748689846480,-189.53451635,0.00022085,30]
[363352379,1748689846490,-1500.0,0.00022088,2]
[363352380,1748689846500,-1500.0,0.00022088,2]
[363352381,1748689846510,-1800.0,0.00022088,2]
[363352382,1748689846520,-625.56291871,0.00022092,2]
[363352383,1748689846530,-66399.31,0.000221,2]
[363352384,1748689846541,-3076.25699881,0.00022141,6]
[363352385,1748689846552,-158.4581234,0.00022164,2]
[363352386,1748689846563,-176.0432544,0.00022164,2]
[363352387,1748689846572,-363.3790062,0.00022164,2]
[363352388,1748689846581,-153.0,0.00022164,2]
[363352389,1748689846593,-312.5513002,0.00022164,2]
[363352390,1748689846605,-352.9081704,0.00022164,2]
[363352391,1748689846615,-352.9081704,0.00022164,2]
[363352392,1748689846626,-153.0,0.00022164,2]
[363352393,1748689846638,-158.4581234,0.00022164,2]
[363352394,1748689846649,-1144.5926006,0.00022164,2]
[363352395,1748689846659,-352.4077528,0.00022164,2]
[363352396,1748689846671,-158.4581234,0.00022164,2]
[363352397,1748689846683,-572.2963003,0.00022164,2]
[363352398,1748689846692,-158.4581234,0.00022164,2]
[363352399,1748689846702,-153.0,0.00022164,2]
[363352400,1748689846712,-352.9081704,0.00022164,2]
[363352401,1748689846723,-572.2963003,0.00022164,2]
[363352402,1748689846733,-572.2963003,0.00022164,2]
[363352403,1748689846743,-158.4581234,0.00022164,2]
[363352404,1748689846753,-153.0,0.00022164,2]
[363352405,1748689846763,-158.4581234,0.00022164,2]
[363352406,1748689846772,-572.2963003,0.00022164,2]
[363352407,1748689846783,-158.4581234,0.00022164,2]
[363352408,1748689846792,-572.2963003,0.00022164,2]
[363352409,1748689846802,-158.4581234,0.00022164,2]
[363352410,1748689846812,-153.0,0.00022164,2]
[363352411,1748689846821,-153.0,0.00022164,2]
[363352412,1748689846831,-488.6311358,0.00022164,2]
[363352413,1748689846842,-176.4540852,0.00022164,2]
[363352414,1748689846851,-572.2963003,0.00022164,2]
[363352415,1748689846861,-158.4581234,0.00022164,2]
[363352416,1748689846871,-176.4540852,0.00022164,2]
[363352417,1748689846881,-158.4581234,0.00022164,2]
[363352418,1748689846890,-153.0,0.00022164,2]
[363352419,1748689846899,-153.0,0.00022164,2]
[363352420,1748689846909,-572.2963003,0.00022164,2]
[363352421,1748689846918,-176.4540852,0.00022164,2]
[363352422,1748689846927,-158.4581234,0.00022164,2]
[363352423,1748689846937,-572.2963003,0.00022164,2]
[363352424,1748689846946,-158.4581234,0.00022164,2]
[363352425,1748689846956,-153.0,0.00022164,2]
[363352426,1748689846966,-153.0,0.00022164,2]
[363352427,1748689846975,-572.2963003,0.00022164,2]
[363352428,1748689846985,-657.2839026,0.00022164,2]
[363352429,1748689846994,-158.4581234,0.00022164,2]
[363352430,1748689847003,-163.0986766,0.00022164,2]
[363352431,1748689847014,-153.0,0.00022164,2]
[363352432,1748689847024,-200.0,0.0002219,4]
[363352433,1748689847034,-2751.94,0.00022191,2]
[363352434,1748689847043,-509.38,0.00022191,2]
[363352435,1748689847053,-784.21,0.00022191,2]
[363352436,1748689847063,-1443.64,0.00022191,2]
[363352437,1748689847072,-1054.13,0.00022191,2]
[363352438,1748689847082,-849.21,0.00022191,2]
[363352439,1748689847091,-1255.53,0.00022191,2]
[363352440,1748689847101,-2533.87,0.00022191,2]
[363352441,1748689847111,-491.89,0.00022191,2]
[363352442,1748689847120,-600.0,0.00022213,2]
[363352443,1748689847129,-189.53451635,0.00022295,30]
[363352444,1748689847138,-151.0,0.000223,8]
[363352445,1748689847148,-900.0,0.00022352,2]
[363352446,1748689847157,-3076.25699881,0.00022417,7]
[363352447,1748689847167,-625.56291871,0.00022425,2]
[363352448,1748689847177,-2004.648516,0.00022442,3]
[363352449,1748689847187,-600.0,0.00022442,2]
[363352450,1748689847197,-3000.0,0.00022465,2]
[363352451,1748689847207,-305.64,0.00022465,2]
[363352452,1748689847216,-305.64,0.00022465,2]
[363352453,1748689847226,-305.64,0.00022465,2]
[363352454,1748689847235,-305.64,0.00022465,2]
[363352455,1748689847245,-305.64,0.00022465,2]
[363352456,1748689847255,-305.64,0.00022465,2]
[363352457,1748689847265,-305.64,0.00022465,2]
[363352458,1748689847275,-305.64,0.00022465,2]
[363352459,1748689847284,-305.64,0.00022465,2]
[363352460,1748689847294,-305.64,0.00022465,2]
[363352461,1748689847304,-305.64,0.00022465,2]
[363352462,1748689847316,-305.64,0.00022465,2]
[363352463,1748689847325,-305.64,0.00022465,2]
[363352464,1748689847335,-305.64,0.00022465,2]
[363352465,1748689847345,-305.64,0.00022465,2]
[363352466,1748689847354,-305.64,0.00022465,2]
[363352467,1748689847364,-305.64,0.00022465,2]
[363352468,1748689847373,-305.64,0.00022465,2]
[363352469,1748689847383,-305.64,0.00022465,2]
[363352470,1748689847392,-305.64,0.00022465,2]
[363352471,1748689847402,-305.64,0.00022465,2]
[363352472,1748689847411,-305.64,0.00022465,2]
[363352473,1748689847421,-305.64,0.00022465,2]
[363352474,1748689847430,-574.76,0.00022465,2]
[363352475,1748689847439,-2751.94,0.00022465,2]
[363352476,1748689847449,-509.38,0.00022465,2]
[363352477,1748689847458,-784.21,0.00022465,2]
[363352478,1748689847467,-1443.64,0.00022465,2]
[363352479,1748689847477,-1054.13,0.00022465,2]
[363352480,1748689847486,-849.21,0.00022465,2]
[363352481,1748689847495,-1255.53,0.00022465,2]
[363352482,1748689847505,-2533.87,0.00022465,2]
[363352484,1748689847515,-491.89,0.00022465,2]
[363352485,1748689847524,-12664.98044988,0.000225,3]
[363352486,1748689847534,-842.5625,0.000225,3]
[363352487,1748689847543,-212.77096907,0.000225,3]
[363352488,1748689847553,-189.53451635,0.00022506,30]
[363352489,1748689847563,-151.0,0.00022512,7]
[363352490,1748689847574,-202.556422,0.00022512,7]
[363352491,1748689847583,-202.556422,0.00022512,7]
[363352492,1748689847593,-151.0,0.00022512,7]
[363352493,1748689847606,-5000.0,0.00022528,2]
[363352494,1748689847615,-2669.08693054,0.00022558,2]
[363352495,1748689847624,-2316.108283,0.00022601,7]
[363352496,1748689847634,-151.0,0.00022601,7]
[363352497,1748689847644,-452.886456,0.00022603,2]
[363352498,1748689847653,-5033.5749792,0.00022607,2]
[363352499,1748689847662,-5000.0,0.00022607,2]
[363352500,1748689847671,-5000.0,0.00022607,2]
[363352501,1748689847681,-5000.0,0.00022607,2]
[363352502,1748689847691,-5000.0,0.00022607,2]
[363352503,1748689847701,-153.0,0.0002263,2]
[363352504,1748689847710,-2000.0,0.00022636,2]
[363352505,1748689847720,-2000.0,0.00022636,2]
[363352506,1748689847729,-2400.0,0.00022636,2]
[363352507,1748689847739,-151.0,0.0002266,7]
[363352508,1748689847749,-263.805469,0.0002266,7]
[363352509,1748689847758,-263.805469,0.0002266,7]
[363352510,1748689847769,-774.0,0.00022671,2]
[363352511,1748689847778,-3076.25699881,0.00022693,7]
[363352512,1748689847787,-8772.43,0.000227,2]
[363352513,1748689847796,-3693.1,0.000227,7]
[363352514,1748689847806,-189.53451635,0.00022716,30]
[363352515,1748689847817,-625.56291873,0.00022737,2]
[363352516,1748689847827,-305.75821302,0.00022739,2]
[363352517,1748689847837,-2751.99727104,0.00022739,2]
[363352518,1748689847846,-509.52248351,0.00022739,2]
[363352519,1748689847856,-784.24849608,0.00022739,2]
[363352520,1748689847866,-1443.84012455,0.00022739,2]
[363352521,1748689847876,-1054.14631997,0.00022739,2]
[363352522,1748689847886,-849.3415797,0.00022739,2]
[363352523,1748689847895,-1255.63671225,0.00022739,2]
[363352524,1748689847904,-2534.00273888,0.00022739,2]
[363352525,1748689847914,-151.0,0.00022739,7]
[363352526,1748689847924,-491.91303731,0.00022739,2]
[363352527,1748689847933,-69821.63848415,0.0002277,3]
[363352528,1748689848307,-430.0,0.00016438,2]
[363352529,1748689848318,-430.0,0.00016438,2]
[363352530,1748689848328,-140.0,0.00016712,2]
[363352531,1748689848340,-290.0,0.00016712,2]
[363352532,1748689848350,-430.0,0.00016712,2]
[363352533,1748689848479,-300.0,0.00016985,2]
[363352534,1748689848489,-430.0,0.00016986,2]
[363352535,1748689848499,-430.0,0.00016986,2]
[363352536,1748689848509,-430.0,0.0001726,2]
[363352537,1748689848519,-430.0,0.0001726,2]
[363352538,1748689848528,-430.0,0.00017534,2]
[363352539,1748689848539,-376.67,0.00017534,2]
[363352540,1748689848549,-430.0,0.00017808,2]
[363352541,1748689848558,-430.0,0.00018082,2]
[363352542,1748689848568,-430.0,0.00018356,2]
[363352543,1748689848579,-430.0,0.0001863,2]
[363352544,1748689848588,-188.19,0.00018904,2]
[363352545,1748689848599,-714.7715287,0.0002189,2]
[363352546,1748689848610,-158.4581234,0.00022164,2]
[363352547,1748689848620,-8820.05260284,0.0002277,3]
[363352548,1748689848632,-966.38629868,0.0002277,3]
[363352549,1748690012016,308847.69218538,0.00024658,120]
[363352550,1748690257180,4203.0,0.00024658,120]
[363352551,1748690667980,16294.0,0.00024658,120]
[363352555,1748690739130,-5000.0,0.00015283,2]
[363352556,1748690739149,-162.0260999,0.00015437,2]
[363352557,1748690739171,-168.19204084,0.00016338,2]
[363352558,1748690739192,-151.70645463,0.00016338,2]
[363352559,1748690739214,-159.87255436,0.00016428,3]
[363352562,1748690837086,-214.1530419,0.00015506,2]
[363352563,1748690837107,-206.30623221,0.00016338,2]
[363352564,1748690837130,-18.87744564,0.00016428,3]
[363352565,1748690837153,-536.29,0.00016428,3]
[363352566,1748690837176,-300.0,0.00016435,2]
[363352567,1748690837199,-1200.0,0.00016435,2]
[363352568,1748690837222,-300.0,0.00016436,2]
[363352569,1748690837246,-572.04559974,0.00016437,2]
[363352570,1748690837271,-500.0,0.00016437,2]
[363352571,1748690837297,-500.0,0.00016437,2]
[363352572,1748690837322,-500.0,0.00016437,2]
[363352573,1748690837346,-500.0,0.00016437,2]
[363352574,1748690837371,-500.0,0.00016437,2]
[363352575,1748690837395,-500.0,0.00016437,2]
[363352576,1748690837419,-500.0,0.00016437,2]
[363352577,1748690837441,-509.98542252,0.00016437,2]
[363352578,1748690837467,-211.61926809,0.00016437,2]
[363352579,1748690837501,-288.38073191,0.00016437,2]
[363352580,1748690837525,-201.36784273,0.00016437,2]
[363352581,1748690837549,-401.49677523,0.00016437,2]
[363352582,1748690837570,-400.0,0.00016438,2]
[363352583,1748690837591,-400.0,0.00016438,2]
[363352584,1748690837612,-430.0,0.00016438,2]
[363352585,1748690837634,-450.0,0.00016438,2]
[363352586,1748690837655,-430.0,0.00016438,2]
[363352587,1748690837680,-430.0,0.00016438,2]
[363352588,1748690837703,-430.0,0.00016438,2]
[363352589,1748690837724,-401.86722048,0.00016438,2]
[363352594,1748690849147,-28.13277952,0.00016438,2]
[363352595,1748690849170,-277.24937574,0.00016438,2]
[363352596,1748690852086,-152.75062426,0.00016438,2]
[363352597,1748690852107,-390.39084991,0.00016438,2]
[363352604,1748690962136,-379.84,0.00016428,3]
[363352605,1748690962157,-189.92,0.00016428,3]
[363352606,1748690962178,-569.76,0.00016428,3]
[363352607,1748690962198,-39.60915009,0.00016438,2]
[363352608,1748690962220,-401.75727751,0.00016438,2]
[363352609,1748690962240,-430.0,0.00016438,2]
[363352610,1748690962262,-430.0,0.00016438,2]
[363352611,1748690962281,-430.0,0.00016438,2]
[363352612,1748690962301,-430.0,0.00016438,2]
[363352613,1748690962320,-430.0,0.00016438,2]
[363352614,1748690962338,-430.0,0.00016438,2]
[363352615,1748690962357,-539.73318184,0.00016438,2]
[363352616,1748690962377,-430.0,0.00016438,2]
[363352617,1748690962397,-430.0,0.00016438,2]
[363352618,1748690962417,-430.0,0.00016438,2]
[363352619,1748690962436,-430.0,0.00016438,2]
[363352620,1748690962457,-430.0,0.00016438,2]
[363352621,1748690962479,-434.97166501,0.00016438,2]
[363352622,1748690962499,-430.0,0.00016438,2]
[363352623,1748690962519,-430.0,0.00016438,2]
[363352624,1748690962541,-430.0,0.00016438,2]
[363352625,1748690962562,-435.9951939,0.00016438,2]
[363352626,1748690962583,-430.0,0.00016438,2]
[363352627,1748690962603,-430.0,0.00016438,2]
[363352628,1748690962623,-193.76318109,0.00016438,2]
[363352629,1748690962644,-430.0,0.00016438,2]
[363352630,1748690962663,-586.94,0.00016438,2]
[363352631,1748690962684,-430.0,0.00016438,2]
[363352632,1748690962703,-430.0,0.00016438,2]
[363352633,1748690962723,-430.0,0.00016438,2]
[363352634,1748690962743,-430.0,0.00016438,2]
[363352635,1748690962763,-430.0,0.00016438,2]
[363352636,1748690962783,-430.0,0.00016438,2]
[363352637,1748690962803,-430.0,0.00016438,2]
[363352638,1748690962823,-430.0,0.00016438,2]
[363352639,1748690962845,-430.0,0.00016438,2]
[363352640,1748690962865,-430.0,0.00016438,2]
[363352641,1748690962885,-430.0,0.00016438,2]
[363352642,1748690962906,-430.0,0.00016438,2]
[363352643,1748690962926,-231.32561113,0.00016438,2]
[363352644,1748690962946,-531.67811651,0.00016438,2]
[363352645,1748690962967,-278.72171561,0.00016438,2]
[363352646,1748690962989,-430.0,0.00016438,2]
[363352647,1748690963013,-434.15968016,0.00016438,2]
[363352648,1748690963034,-530.32295553,0.00016438,2]
[363352649,1748690963056,-430.0,0.00016438,2]
[363352650,1748690963077,-431.38406047,0.00016438,2]
[363352651,1748690963098,-430.87968809,0.00016438,2]
[363352652,1748690963118,-430.0,0.00016438,2]
[363352653,1748690963139,-261.70902113,0.00016438,2]
[363352696,1748691032042,-168.19204084,0.00016337,2]
[363352698,1748691032054,-168.19204084,0.00016338,2]
[363352700,1748691032064,-504.48457492,0.00016437,2]
[363352702,1748691032074,-346.19844143,0.00016437,2]
[363352704,1748691032084,-80.29430481,0.00016437,2]
[363352707,1748691032098,-219.70569519,0.00016437,2]
[363352709,1748691032108,-168.29097887,0.00016438,2]
[363352711,1748691032119,-430.0,0.00016438,2]
[363352713,1748691032129,-431.69123567,0.00016438,2]
[363352721,1748691032202,-4.9797284,0.00016438,2]
[363352723,1748691032215,-437.60978903,0.00016438,2]
[363352725,1748691032225,-430.0,0.00016438,2]
[363352727,1748691032235,-426.53693295,0.00016438,2]
[363352730,1748691032246,-430.0,0.00016438,2]
[363352732,1748691032256,-160.30031139,0.00016438,2]
[363352734,1748691032266,-430.0,0.00016438,2]
[363352736,1748691032276,-434.28694993,0.00016438,2]
[363352737,1748691032286,-430.0,0.00016438,2]
[363352739,1748691032296,-442.167822,0.00016438,2]
[363352741,1748691032306,-430.0,0.00016438,2]
[363352742,1748691032316,-430.0,0.00016438,2]
[363352743,1748691032326,-430.0,0.00016438,2]
[363352744,1748691032336,-434.46125129,0.00016438,2]
[363352745,1748691032346,-422.66987332,0.00016438,2]
[363352747,1748691032357,-441.19447688,0.00016438,2]
[363352749,1748691032367,-430.0,0.00016438,2]
[363352750,1748691032377,-520.0,0.00016438,2]
[363352751,1748691032388,-430.0,0.00016438,2]
[363352752,1748691032398,-400.52936527,0.00016438,2]
[363352753,1748691032407,-437.63121481,0.00016438,2]
[363352754,1748691032419,-430.0,0.00016438,2]
[363352755,1748691032428,-430.0,0.00016438,2]
[363352756,1748691032438,-430.0,0.00016438,2]
[363352757,1748691032448,-430.0,0.00016438,2]
[363352758,1748691032458,-430.0,0.00016438,2]
[363352759,1748691032468,-446.26725662,0.00016438,2]
[363352760,1748691032478,-473.87377456,0.00016438,2]
[363352761,1748691032488,-433.18760519,0.00016438,2]
[363352762,1748691032498,-276.98325943,0.00016438,2]
[363352763,1748691032508,-430.0,0.00016438,2]
[363352764,1748691032518,-435.81428046,0.00016438,2]
[363352765,1748691032528,-430.88810857,0.00016438,2]
[363352766,1748691032538,-430.0,0.00016438,2]
[363352767,1748691032548,-430.0,0.00016438,2]
[363352768,1748691032557,-430.0,0.00016438,2]
[363352769,1748691032567,-430.0,0.00016438,2]
[363352770,1748691032577,-430.0,0.00016438,2]
[363352771,1748691032587,-430.0,0.00016438,2]
[363352772,1748691032597,-430.0,0.00016438,2]
[363352773,1748691032608,-430.0,0.00016438,2]
[363352774,1748691032621,-430.0,0.00016438,2]
[363352775,1748691032630,-430.0,0.00016438,2]
[363352776,1748691032640,-430.0,0.00016438,2]
[363352777,1748691032650,-430.0,0.00016438,2]
[363352778,1748691032662,-433.01600142,0.00016438,2]
[363352779,1748691032672,-376.14923766,0.00016438,2]
[363352780,1748691032683,-430.92291677,0.00016438,2]
[363352781,1748691032694,-430.0,0.00016438,2]
[363352782,1748691032705,-430.0,0.00016438,2]
[363352783,1748691032716,-430.0,0.00016438,2]
[363352784,1748691032727,-430.0,0.00016438,2]
[363352785,1748691032737,-430.0,0.00016438,2]
[363352786,1748691032747,-430.0,0.00016438,2]
[363352787,1748691032757,-430.0,0.00016438,2]
[363352788,1748691032767,-430.0,0.00016438,2]
[363352789,1748691032777,-407.4263301,0.00016438,2]
[363352790,1748691032787,-430.0,0.00016438,2]
[363352791,1748691032797,-494.39269028,0.00016438,2]
[363352792,1748691032806,-430.0,0.00016438,2]
[363352793,1748691032816,-431.14370387,0.00016438,2]
[363352794,1748691032826,-431.07859532,0.00016438,2]
[363352795,1748691032836,-430.0,0.00016438,2]
[363352796,1748691032847,-430.0,0.00016438,2]
[363352797,1748691032857,-430.0,0.00016438,2]
[363352798,1748691032867,-430.0,0.00016438,2]
[363352799,1748691032877,-500.0,0.00016438,2]
[363352800,1748691032887,-430.0,0.00016438,2]
[363352801,1748691032897,-436.47943303,0.00016438,2]
[363352802,1748691032907,-430.0,0.00016438,2]
[363352803,1748691032917,-430.0,0.00016438,2]
[363352804,1748691032927,-519.7860917,0.00016438,2]
[363352805,1748691032937,-430.0,0.00016438,2]
[363352806,1748691032947,-301.62423241,0.00016438,2]
[363352807,1748691032958,-430.0,0.00016438,2]
[363352808,1748691032968,-450.0,0.00016438,2]
[363352809,1748691032978,-430.0,0.00016438,2]
[363352810,1748691032988,-430.0,0.00016438,2]
[363352811,1748691033184,-430.0,0.00016438,2]
[363352812,1748691033200,-430.0,0.00016438,2]
[363352813,1748691033214,-430.0,0.00016438,2]
[363352814,1748691033225,-430.0,0.00016438,2]
[363352815,1748691033235,-430.0,0.00016438,2]
[363352816,1748691033245,-431.67504431,0.00016438,2]
[363352817,1748691033255,-310.51665092,0.00016438,2]
[363352818,1748691033265,-430.0,0.00016438,2]
[363352819,1748691033275,-430.0,0.00016438,2]
[363352820,1748691033285,-430.0,0.00016438,2]
[363352821,1748691033295,-430.0,0.00016438,2]
[363352822,1748691033306,-430.0,0.00016438,2]
[363352823,1748691033315,-430.0,0.00016438,2]
[363352824,1748691033325,-361.18800078,0.00016438,2]
[363352825,1748691033335,-430.0,0.00016438,2]
[363352826,1748691033344,-393.72629953,0.00016438,2]
[363352827,1748691033354,-430.0,0.00016438,2]
[363352828,1748691033364,-407.1139216,0.00016438,2]
[363352829,1748691033375,-404.75239092,0.00016438,2]
[363352830,1748691033385,-430.0,0.00016438,2]
[363352831,1748691033395,-513.42475734,0.00016438,2]
[363352832,1748691033410,-475.36104579,0.00016438,2]
[363352833,1748691033421,-430.0,0.00016438,2]
[363352834,1748691033431,-430.0,0.00016438,2]
[363352835,1748691033442,-430.0,0.00016438,2]
[363352836,1748691033453,-454.90788779,0.00016438,2]
[363352837,1748691033464,-430.0,0.00016438,2]
[363352838,1748691033474,-435.21443288,0.00016438,2]
[363352839,1748691033486,-430.0,0.00016438,2]
[363352840,1748691033496,-436.88955463,0.00016438,2]
[363352841,1748691033506,-432.09244144,0.00016438,2]
[363352842,1748691033516,-430.0,0.00016438,2]
[363352843,1748691033526,-430.0,0.00016438,2]
[363352844,1748691033539,-431.15870649,0.00016438,2]
[363352845,1748691033549,-430.0,0.00016438,2]
[363352846,1748691033560,-404.38847281,0.00016438,2]